[Event "Late-Titled-Tuesday-Blitz-February-13-2024"]
[Site "Chess.com"]
[Date "2024.02.13"]
[Round "3"]
[White "N_Mullodzhanov"]
[Black "ProfessorChess101"]
[Result "0-1"]
[WhiteElo "2507"]
[BlackElo "2786"]
[TimeControl "180+1"]
[EndTime "14:29:04 PST"]
[Termination "ProfessorChess101 won by checkmate"]

1. e4 {[%clk 0:03:00.9]} 1... c6 {[%clk 0:02:58.7]} 2. Nc3 {[%clk 0:03:00.6]}
2... d5 {[%clk 0:02:58.2]} 3. Nf3 {[%clk 0:03:01]} 3... dxe4 {[%clk 0:02:58.5]}
4. Nxe4 {[%clk 0:03:01.5]} 4... Nf6 {[%clk 0:02:59.3]} 5. Nxf6+ {[%clk 0:03:01]}
5... exf6 {[%clk 0:03:00.2]} 6. d4 {[%clk 0:03:01.5]} 6... Bd6 {[%clk
0:03:00.1]} 7. Bd3 {[%clk 0:03:01.8]} 7... O-O {[%clk 0:03:00.6]} 8. O-O {[%clk
0:03:02.2]} 8... Nd7 {[%clk 0:02:58]} 9. Re1 {[%clk 0:03:01.4]} 9... Re8 {[%clk
0:02:55.2]} 10. c3 {[%clk 0:02:55.4]} 10... Nf8 {[%clk 0:02:55]} 11. h3 {[%clk
0:02:51.8]} 11... Be6 {[%clk 0:02:54.4]} 12. Qc2 {[%clk 0:02:50.9]} 12... Qc7
{[%clk 0:02:53.7]} 13. Bd2 {[%clk 0:02:48.7]} 13... Rad8 {[%clk 0:02:53.3]} 14.
c4 {[%clk 0:02:46.3]} 14... c5 {[%clk 0:02:50.9]} 15. d5 {[%clk 0:02:45.8]}
15... Bc8 {[%clk 0:02:51.6]} 16. Bc3 {[%clk 0:02:43.2]} 16... a6 {[%clk
0:02:50.6]} 17. a4 {[%clk 0:02:43.1]} 17... Ng6 {[%clk 0:02:50.3]} 18. Bf5
{[%clk 0:02:34.5]} 18... Re7 {[%clk 0:02:35.7]} 19. Rxe7 {[%clk 0:02:30.8]}
19... Bxe7 {[%clk 0:02:36.5]} 20. Re1 {[%clk 0:02:25.2]} 20... Bd6 {[%clk
0:02:36.6]} 21. b3 {[%clk 0:02:25]} 21... Bd7 {[%clk 0:02:33.3]} 22. h4 {[%clk
0:02:22.4]} 22... Nf8 {[%clk 0:02:13.4]} 23. g3 {[%clk 0:02:06.5]} 23... Re8
{[%clk 0:02:12.2]} 24. Rxe8 {[%clk 0:02:03.7]} 24... Bxe8 {[%clk 0:02:12.7]} 25.
Kg2 {[%clk 0:02:04.2]} 25... b5 {[%clk 0:02:10]} 26. axb5 {[%clk 0:02:00.6]}
26... axb5 {[%clk 0:02:08.6]} 27. Qa2 {[%clk 0:01:58.8]} 27... Qb7 {[%clk
0:01:50.1]} 28. Kh2 {[%clk 0:01:46.2]} 28... h6 {[%clk 0:01:43.8]} 29. Kg2
{[%clk 0:01:45.4]} 29... Bd7 {[%clk 0:01:36.2]} 30. Bxd7 {[%clk 0:01:37.8]}
30... Nxd7 {[%clk 0:01:37.1]} 31. Qe2 {[%clk 0:01:38.1]} 31... b4 {[%clk
0:01:18]} 32. Bb2 {[%clk 0:01:35]} 32... Kf8 {[%clk 0:01:16.9]} 33. Nd2 {[%clk
0:01:34.4]} 33... Qc7 {[%clk 0:01:05.6]} 34. Qd3 {[%clk 0:01:29.5]} 34... Kg8
{[%clk 0:00:56.9]} 35. Ne4 {[%clk 0:01:21.3]} 35... Ne5 {[%clk 0:00:52.8]} 36.
Qc2 {[%clk 0:01:16.1]} 36... Bf8 {[%clk 0:00:45.7]} 37. Bc1 {[%clk 0:01:09.9]}
37... Qc8 {[%clk 0:00:38.4]} 38. Bf4 {[%clk 0:01:08.4]} 38... Qd8 {[%clk
0:00:29.9]} 39. Be3 {[%clk 0:01:04.8]} 39... Qc8 {[%clk 0:00:28.7]} 40. Qe2
{[%clk 0:01:04.3]} 40... Ng4 {[%clk 0:00:18.5]} 41. Bf4 {[%clk 0:01:03.2]} 41...
Ne5 {[%clk 0:00:18.1]} 42. Qa2 {[%clk 0:01:01.3]} 42... Qf5 {[%clk 0:00:18]} 43.
Qb1 {[%clk 0:00:46.3]} 43... Qg4 {[%clk 0:00:11.2]} 44. Nd2 {[%clk 0:00:42.5]}
44... Ng6 {[%clk 0:00:09.7]} 45. Be3 {[%clk 0:00:17.8]} 45... Nxh4+ {[%clk
0:00:09.5]} 46. Kf1 {[%clk 0:00:15.4]} 46... Nf5 {[%clk 0:00:09.7]} 47. Bf4
{[%clk 0:00:15]} 47... Nd4 {[%clk 0:00:09.1]} 48. Qe4 {[%clk 0:00:11.1]} 48...
Qd1+ {[%clk 0:00:07.3]} 49. Kg2 {[%clk 0:00:10.6]} 49... Qg4 {[%clk 0:00:06.5]}
50. f3 {[%clk 0:00:09.6]} 50... Qd7 {[%clk 0:00:07]} 51. Qb1 {[%clk 0:00:09]}
51... Qe8 {[%clk 0:00:06.1]} 52. Ne4 {[%clk 0:00:08.4]} 52... f5 {[%clk
0:00:05.6]} 53. Nf2 {[%clk 0:00:08.2]} 53... Qe2 {[%clk 0:00:05.8]} 54. Qd3
{[%clk 0:00:02.2]} 54... Qxd3 {[%clk 0:00:05]} 55. Nxd3 {[%clk 0:00:03.1]} 55...
Nxb3 {[%clk 0:00:05.6]} 56. Be3 {[%clk 0:00:04]} 56... Nd4 {[%clk 0:00:05.2]}
57. Bxd4 {[%clk 0:00:03.9]} 57... cxd4 {[%clk 0:00:06.1]} 58. c5 {[%clk
0:00:04.4]} 58... b3 {[%clk 0:00:06.8]} 59. d6 {[%clk 0:00:04.7]} 59... f6
{[%clk 0:00:05.3]} 60. Nc1 {[%clk 0:00:03.3]} 60... b2 {[%clk 0:00:04.7]} 61. d7
{[%clk 0:00:02.9]} 61... Be7 {[%clk 0:00:04.2]} 62. c6 {[%clk 0:00:03.8]} 62...
bxc1=Q {[%clk 0:00:04]} 63. f4 {[%clk 0:00:03.8]} 63... Qxc6+ {[%clk 0:00:04.3]}
64. Kh3 {[%clk 0:00:03.8]} 64... Qh1# {[%clk 0:00:04.2]} 0-1

[Event "Late-Titled-Tuesday-Blitz-February-13-2024"]
[Site "Chess.com"]
[Date "2024.02.13"]
[Round "3"]
[White "SHIVACalypso"]
[Black "BabageldiAnnaberdiyev"]
[Result "1-0"]
[WhiteElo "2481"]
[BlackElo "2643"]
[TimeControl "180+1"]
[EndTime "14:29:04 PST"]
[Termination "SHIVACalypso won by resignation"]

1. d4 {[%clk 0:02:59.3]} 1... e6 {[%clk 0:03:00.9]} 2. e4 {[%clk 0:02:58.2]}
2... d5 {[%clk 0:02:59.8]} 3. Nd2 {[%clk 0:02:58.5]} 3... Nf6 {[%clk 0:02:58.6]}
4. e5 {[%clk 0:02:58.2]} 4... Nfd7 {[%clk 0:02:59.1]} 5. Bd3 {[%clk 0:02:58.4]}
5... c5 {[%clk 0:02:59.7]} 6. c3 {[%clk 0:02:58.7]} 6... Nc6 {[%clk 0:02:59.9]}
7. Ne2 {[%clk 0:02:58.1]} 7... cxd4 {[%clk 0:03:00.4]} 8. cxd4 {[%clk 0:02:58]}
8... Qb6 {[%clk 0:03:01.3]} 9. O-O {[%clk 0:02:54.6]} 9... Nxd4 {[%clk
0:02:57.2]} 10. Nxd4 {[%clk 0:02:55.5]} 10... Qxd4 {[%clk 0:02:57.5]} 11. Nf3
{[%clk 0:02:55.6]} 11... Qb6 {[%clk 0:02:58.1]} 12. a3 {[%clk 0:02:55.8]} 12...
a5 {[%clk 0:02:57.5]} 13. Qa4 {[%clk 0:02:53.3]} 13... h5 {[%clk 0:02:53.6]} 14.
Be3 {[%clk 0:02:51.8]} 14... Bc5 {[%clk 0:02:41.8]} 15. Bxc5 {[%clk 0:02:47.5]}
15... Qxc5 {[%clk 0:02:42.7]} 16. Rac1 {[%clk 0:02:45.3]} 16... Qe7 {[%clk
0:02:43.1]} 17. Rc7 {[%clk 0:02:41.2]} 17... O-O {[%clk 0:02:43.4]} 18. Rfc1
{[%clk 0:02:40.5]} 18... Qd8 {[%clk 0:02:37.1]} 19. Bb5 {[%clk 0:02:09.4]} 19...
Nb6 {[%clk 0:02:36.1]} 20. Qd4 {[%clk 0:02:07.2]} 20... Nc4 {[%clk 0:02:29]} 21.
Qc5 {[%clk 0:02:04.7]} 21... Nxb2 {[%clk 0:02:06.8]} 22. Nd4 {[%clk 0:01:50.9]}
22... Nc4 {[%clk 0:01:58.8]} 23. Bxc4 {[%clk 0:01:46.6]} 23... dxc4 {[%clk
0:01:59.7]} 24. Rxc4 {[%clk 0:01:47]} 24... b6 {[%clk 0:01:45.5]} 25. Qxb6
{[%clk 0:01:40.8]} 25... Ba6 {[%clk 0:01:45.4]} 26. Rc1 {[%clk 0:01:35.1]} 26...
Qd5 {[%clk 0:01:38.2]} 27. Qc5 {[%clk 0:01:26.3]} 27... Bb7 {[%clk 0:01:37.4]}
28. Qxd5 {[%clk 0:01:23.1]} 28... Bxd5 {[%clk 0:01:38.3]} 29. Nb5 {[%clk
0:01:16.5]} 29... a4 {[%clk 0:01:36.3]} 30. Nd6 {[%clk 0:01:14.5]} 30... Bb3
{[%clk 0:01:15.7]} 31. f3 {[%clk 0:01:12.1]} 31... Ra5 {[%clk 0:01:14.4]} 32.
R1c5 {[%clk 0:01:09.1]} 32... Rxc5 {[%clk 0:01:12.6]} 33. Rxc5 {[%clk 0:01:10]}
33... Rd8 {[%clk 0:01:09.7]} 34. Kf2 {[%clk 0:01:05.3]} 34... f6 {[%clk
0:01:09.3]} 35. f4 {[%clk 0:01:05.7]} 35... fxe5 {[%clk 0:01:08.4]} 36. fxe5
{[%clk 0:01:06.6]} 36... Rf8+ {[%clk 0:01:08.6]} 37. Ke3 {[%clk 0:01:05.1]}
37... Rf1 {[%clk 0:01:07.8]} 38. Ne4 {[%clk 0:00:48.3]} 38... Re1+ {[%clk
0:01:04.4]} 39. Kd4 {[%clk 0:00:46.7]} 39... Kh7 {[%clk 0:00:56.7]} 40. Rc7
{[%clk 0:00:30.5]} 40... Rd1+ {[%clk 0:00:51.2]} 41. Ke3 {[%clk 0:00:30.1]}
41... Ra1 {[%clk 0:00:46.2]} 42. Kf4 {[%clk 0:00:26.8]} 42... Rf1+ {[%clk
0:00:36.3]} 43. Kg5 {[%clk 0:00:26.4]} 43... Rf5+ {[%clk 0:00:36.7]} 44. Kh4
{[%clk 0:00:24.6]} 44... Rxe5 {[%clk 0:00:37.6]} 45. Ng5+ {[%clk 0:00:20.8]}
45... Kg6 {[%clk 0:00:36.2]} 46. Nf3 {[%clk 0:00:17.3]} 46... Re4+ {[%clk
0:00:36.1]} 47. Kg3 {[%clk 0:00:17.6]} 47... Kh6 {[%clk 0:00:33.2]} 48. h4
{[%clk 0:00:17.1]} 48... Re3 {[%clk 0:00:33.6]} 49. Kf4 {[%clk 0:00:14.8]} 49...
Re2 {[%clk 0:00:34]} 50. g3 {[%clk 0:00:13.1]} 50... Rf2 {[%clk 0:00:33.9]} 51.
Ke3 {[%clk 0:00:13.4]} 51... Rxf3+ {[%clk 0:00:34.3]} 52. Kxf3 {[%clk
0:00:13.4]} 52... Bd5+ {[%clk 0:00:35.2]} 53. Ke3 {[%clk 0:00:13.6]} 53... Kg6
{[%clk 0:00:36.1]} 54. Kf4 {[%clk 0:00:12.8]} 54... Kf6 {[%clk 0:00:36.5]} 55.
Ra7 {[%clk 0:00:12.5]} 55... e5+ {[%clk 0:00:36.9]} 56. Ke3 {[%clk 0:00:12.9]}
56... Bb3 {[%clk 0:00:37.5]} 57. Ke4 {[%clk 0:00:12.7]} 57... Bc2+ {[%clk
0:00:37.1]} 58. Kd5 {[%clk 0:00:13]} 58... g6 {[%clk 0:00:37.4]} 59. Rc7 {[%clk
0:00:11.8]} 59... Bb3+ {[%clk 0:00:36.4]} 60. Ke4 {[%clk 0:00:11.7]} 60... Ba2
{[%clk 0:00:34.4]} 61. Rc6+ {[%clk 0:00:12]} 61... Kf7 {[%clk 0:00:34.5]} 62.
Kxe5 {[%clk 0:00:12]} 62... Bb3 {[%clk 0:00:35]} 63. Rf6+ {[%clk 0:00:12.1]}
63... Kg7 {[%clk 0:00:35.2]} 64. Rb6 {[%clk 0:00:12.5]} 64... Bc2 {[%clk
0:00:34.8]} 65. Rb7+ {[%clk 0:00:11.8]} 65... Kf8 {[%clk 0:00:34.6]} 66. Rc7
{[%clk 0:00:11.5]} 66... Bb3 {[%clk 0:00:33.2]} 67. Kf6 {[%clk 0:00:12.4]} 67...
Ke8 {[%clk 0:00:32.8]} 68. Kxg6 {[%clk 0:00:12.8]} 68... Kd8 {[%clk 0:00:33.7]}
69. Rg7 {[%clk 0:00:12.1]} 69... Bd1 {[%clk 0:00:31.9]} 70. Kg5 {[%clk 0:00:12]}
70... Ke8 {[%clk 0:00:32]} 71. Rh7 {[%clk 0:00:12.6]} 71... Kf8 {[%clk
0:00:31.3]} 72. Rxh5 {[%clk 0:00:13.2]} 1-0

[Event "Late-Titled-Tuesday-Blitz-February-13-2024"]
[Site "Chess.com"]
[Date "2024.02.13"]
[Round "3"]
[White "SergioMoralesG"]
[Black "KaydenTroffChess"]
[Result "1/2-1/2"]
[WhiteElo "2522"]
[BlackElo "2837"]
[TimeControl "180+1"]
[EndTime "14:29:08 PST"]
[Termination "Game drawn - insufficient material"]

1. d4 {[%clk 0:02:53.9]} 1... Nf6 {[%clk 0:02:59.9]} 2. c4 {[%clk 0:02:54.4]}
2... g6 {[%clk 0:02:59.9]} 3. Nc3 {[%clk 0:02:54.1]} 3... d5 {[%clk 0:03:00.2]}
4. Nf3 {[%clk 0:02:53.7]} 4... Bg7 {[%clk 0:02:59.8]} 5. e3 {[%clk 0:02:54.4]}
5... O-O {[%clk 0:02:57.5]} 6. cxd5 {[%clk 0:02:55.1]} 6... Nxd5 {[%clk
0:02:57.4]} 7. Bc4 {[%clk 0:02:55.8]} 7... Nxc3 {[%clk 0:02:57.7]} 8. bxc3
{[%clk 0:02:56.7]} 8... c5 {[%clk 0:02:57.9]} 9. O-O {[%clk 0:02:56.7]} 9... Nd7
{[%clk 0:02:57.4]} 10. Qe2 {[%clk 0:02:55.2]} 10... Nb6 {[%clk 0:02:57.5]} 11.
Bb3 {[%clk 0:02:54.4]} 11... Qc7 {[%clk 0:02:51.3]} 12. a4 {[%clk 0:02:50.8]}
12... Bf5 {[%clk 0:02:35.2]} 13. Ba3 {[%clk 0:02:34.8]} 13... c4 {[%clk
0:01:48]} 14. Bc2 {[%clk 0:02:18.1]} 14... Be6 {[%clk 0:01:30.4]} 15. e4 {[%clk
0:02:14.5]} 15... Rfe8 {[%clk 0:01:28.9]} 16. Ng5 {[%clk 0:02:08]} 16... Bd7
{[%clk 0:01:25.7]} 17. a5 {[%clk 0:01:55.2]} 17... Na4 {[%clk 0:00:59.9]} 18.
Bb4 {[%clk 0:01:48.6]} 18... Nb2 {[%clk 0:00:56.4]} 19. e5 {[%clk 0:01:42]}
19... Nd3 {[%clk 0:00:42.9]} 20. Bxd3 {[%clk 0:01:37]} 20... cxd3 {[%clk
0:00:42.7]} 21. Qxd3 {[%clk 0:01:37.9]} 21... h6 {[%clk 0:00:40]} 22. Ne4 {[%clk
0:01:08]} 22... Rad8 {[%clk 0:00:39.4]} 23. Qe3 {[%clk 0:01:00.4]} 23... Bb5
{[%clk 0:00:33.5]} 24. Rfc1 {[%clk 0:00:59.2]} 24... f6 {[%clk 0:00:32.5]} 25.
f4 {[%clk 0:00:56.2]} 25... Kh7 {[%clk 0:00:29.2]} 26. Ng3 {[%clk 0:00:52.8]}
26... f5 {[%clk 0:00:21.6]} 27. c4 {[%clk 0:00:25.3]} 27... Bd7 {[%clk
0:00:20.4]} 28. d5 {[%clk 0:00:23.9]} 28... e6 {[%clk 0:00:20.1]} 29. Qxa7
{[%clk 0:00:19.1]} 29... Rc8 {[%clk 0:00:17.2]} 30. Bd6 {[%clk 0:00:15.1]} 30...
Qd8 {[%clk 0:00:13.1]} 31. Qb6 {[%clk 0:00:14.4]} 31... Qh4 {[%clk 0:00:11.6]}
32. Qxb7 {[%clk 0:00:09.8]} 32... Red8 {[%clk 0:00:11.8]} 33. dxe6 {[%clk
0:00:06.9]} 33... Bxe6 {[%clk 0:00:11.9]} 34. Qf3 {[%clk 0:00:07.1]} 34... Rxc4
{[%clk 0:00:11.1]} 35. Rxc4 {[%clk 0:00:06.8]} 35... Bxc4 {[%clk 0:00:12]} 36.
a6 {[%clk 0:00:07.3]} 36... Rxd6 {[%clk 0:00:08.7]} 37. exd6 {[%clk 0:00:07.3]}
37... Bxa1 {[%clk 0:00:08.5]} 38. a7 {[%clk 0:00:07.5]} 38... Bd4+ {[%clk
0:00:08.8]} 39. Kh1 {[%clk 0:00:06.4]} 39... Bxa7 {[%clk 0:00:07]} 40. Qb7+
{[%clk 0:00:05]} 40... Kg8 {[%clk 0:00:07.4]} 41. Qxa7 {[%clk 0:00:05]} 41...
Qd8 {[%clk 0:00:06.5]} 42. Qc7 {[%clk 0:00:04.2]} 42... Qxc7 {[%clk 0:00:04.7]}
43. dxc7 {[%clk 0:00:05.1]} 43... Be6 {[%clk 0:00:05.1]} 44. Ne2 {[%clk
0:00:05.8]} 44... Kf7 {[%clk 0:00:05.8]} 45. Nd4 {[%clk 0:00:06.5]} 45... Bc8
{[%clk 0:00:05.6]} 46. g3 {[%clk 0:00:06.8]} 46... Ke7 {[%clk 0:00:06.1]} 47.
Kg1 {[%clk 0:00:07.3]} 47... Kd6 {[%clk 0:00:06.7]} 48. Nb5+ {[%clk 0:00:08.1]}
48... Kc6 {[%clk 0:00:06.5]} 49. Nc3 {[%clk 0:00:08.1]} 49... Kxc7 {[%clk
0:00:06.8]} 50. Kf2 {[%clk 0:00:09]} 50... Kd6 {[%clk 0:00:07.5]} 51. Ke3 {[%clk
0:00:09.8]} 51... Kc5 {[%clk 0:00:07.9]} 52. Ne2 {[%clk 0:00:09.9]} 52... Be6
{[%clk 0:00:08]} 53. Nd4 {[%clk 0:00:10]} 53... Bd5 {[%clk 0:00:08.6]} 54. Ne2
{[%clk 0:00:10.1]} 54... Bc4 {[%clk 0:00:08.7]} 55. Nd4 {[%clk 0:00:09.9]} 55...
Bd5 {[%clk 0:00:08.5]} 56. Ne2 {[%clk 0:00:09.9]} 56... Bg2 {[%clk 0:00:08.5]}
57. Nd4 {[%clk 0:00:09.6]} 57... Kd5 {[%clk 0:00:09]} 58. Nc2 {[%clk 0:00:09.2]}
58... Be4 {[%clk 0:00:09]} 59. Nb4+ {[%clk 0:00:08.8]} 59... Kc5 {[%clk
0:00:09.4]} 60. Na2 {[%clk 0:00:09]} 60... Kc4 {[%clk 0:00:09.4]} 61. Nc1 {[%clk
0:00:08.4]} 61... g5 {[%clk 0:00:10]} 62. Ne2 {[%clk 0:00:08.1]} 62... Kd5
{[%clk 0:00:10.2]} 63. fxg5 {[%clk 0:00:07.5]} 63... hxg5 {[%clk 0:00:10.1]} 64.
h4 {[%clk 0:00:08.2]} 64... gxh4 {[%clk 0:00:09]} 65. gxh4 {[%clk 0:00:09.1]}
65... Ke5 {[%clk 0:00:09.7]} 66. Nc3 {[%clk 0:00:09.2]} 66... f4+ {[%clk
0:00:09.7]} 67. Kf2 {[%clk 0:00:08.9]} 67... Bd3 {[%clk 0:00:10]} 68. Ne2 {[%clk
0:00:08.6]} 68... Bxe2 {[%clk 0:00:07.7]} 69. Kxe2 {[%clk 0:00:09.5]} 69... Ke4
{[%clk 0:00:07.8]} 70. h5 {[%clk 0:00:09.5]} 70... Kf5 {[%clk 0:00:08.3]} 71.
Kf3 {[%clk 0:00:10.4]} 71... Kg5 {[%clk 0:00:08.4]} 72. h6 {[%clk 0:00:10.9]}
72... Kxh6 {[%clk 0:00:08.8]} 73. Kxf4 {[%clk 0:00:11.8]} 1/2-1/2

[Event "Late-Titled-Tuesday-Blitz-February-13-2024"]
[Site "Chess.com"]
[Date "2024.02.13"]
[Round "3"]
[White "Kosak12"]
[Black "Bigfish1995"]
[Result "1-0"]
[WhiteElo "2861"]
[BlackElo "3166"]
[TimeControl "180+1"]
[EndTime "14:29:12 PST"]
[Termination "Kosak12 won by resignation"]

1. e4 {[%clk 0:02:55.3]} 1... c6 {[%clk 0:02:58.5]} 2. d4 {[%clk 0:02:43]} 2...
d5 {[%clk 0:02:58.1]} 3. Nd2 {[%clk 0:02:41.7]} 3... a6 {[%clk 0:02:56.2]} 4. c3
{[%clk 0:02:37]} 4... dxe4 {[%clk 0:02:41.7]} 5. Nxe4 {[%clk 0:02:36]} 5... Bf5
{[%clk 0:02:42.3]} 6. Bd3 {[%clk 0:02:34.2]} 6... e6 {[%clk 0:02:42]} 7. Ne2
{[%clk 0:02:25.3]} 7... Nd7 {[%clk 0:02:41.4]} 8. N2g3 {[%clk 0:02:23.2]} 8...
Bg6 {[%clk 0:02:32.2]} 9. h4 {[%clk 0:02:22.6]} 9... Ngf6 {[%clk 0:02:28.3]} 10.
h5 {[%clk 0:02:10.8]} 10... Bxe4 {[%clk 0:02:28.1]} 11. Nxe4 {[%clk 0:02:11.2]}
11... h6 {[%clk 0:02:26.2]} 12. Qe2 {[%clk 0:02:08.2]} 12... Qc7 {[%clk
0:02:19.9]} 13. Bd2 {[%clk 0:02:04.3]} 13... O-O-O {[%clk 0:02:18]} 14. O-O-O
{[%clk 0:02:03.7]} 14... Nxe4 {[%clk 0:02:16.7]} 15. Bxe4 {[%clk 0:02:03.2]}
15... Nf6 {[%clk 0:02:17.2]} 16. Bc2 {[%clk 0:02:01.5]} 16... Bd6 {[%clk
0:02:09]} 17. Kb1 {[%clk 0:02:01.6]} 17... Bf4 {[%clk 0:02:07.4]} 18. Be1 {[%clk
0:02:01.6]} 18... c5 {[%clk 0:02:04.1]} 19. g3 {[%clk 0:02:01.8]} 19... Qc6
{[%clk 0:02:02.2]} 20. f3 {[%clk 0:01:47.7]} 20... Bc7 {[%clk 0:02:01.4]} 21.
Bf2 {[%clk 0:01:45.9]} 21... cxd4 {[%clk 0:01:43.1]} 22. Bxd4 {[%clk 0:01:43.4]}
22... Bb6 {[%clk 0:01:29.2]} 23. Be5 {[%clk 0:01:27.6]} 23... Rxd1+ {[%clk
0:01:29.5]} 24. Rxd1 {[%clk 0:01:07.3]} 24... Bc7 {[%clk 0:01:25.8]} 25. Bxf6
{[%clk 0:00:56.5]} 25... gxf6 {[%clk 0:01:26.7]} 26. Be4 {[%clk 0:00:56.5]}
26... Qb5 {[%clk 0:01:08.6]} 27. Qxb5 {[%clk 0:00:34.1]} 27... axb5 {[%clk
0:01:09.5]} 28. g4 {[%clk 0:00:34.5]} 28... Rg8 {[%clk 0:01:09.4]} 29. a3 {[%clk
0:00:33]} 29... Rg5 {[%clk 0:01:09.7]} 30. Bd3 {[%clk 0:00:27.6]} 30... Bf4
{[%clk 0:01:08.1]} 31. Kc2 {[%clk 0:00:27.8]} 31... Kc7 {[%clk 0:01:08]} 32. Re1
{[%clk 0:00:28.1]} 32... Bd6 {[%clk 0:01:08.1]} 33. b4 {[%clk 0:00:24.7]} 33...
Kc6 {[%clk 0:01:02]} 34. Kb3 {[%clk 0:00:24.8]} 34... f5 {[%clk 0:01:00.7]} 35.
gxf5 {[%clk 0:00:21.5]} 35... exf5 {[%clk 0:00:58.4]} 36. c4 {[%clk 0:00:08.9]}
36... bxc4+ {[%clk 0:00:57.2]} 37. Bxc4 {[%clk 0:00:09.4]} 37... Rxh5 {[%clk
0:00:56.3]} 38. Bxf7 {[%clk 0:00:09.4]} 38... Rh3 {[%clk 0:00:56.1]} 39. Rc1+
{[%clk 0:00:09.7]} 39... Kb6 {[%clk 0:00:48]} 40. Bd5 {[%clk 0:00:09.8]} 40...
h5 {[%clk 0:00:48.1]} 41. a4 {[%clk 0:00:10]} 41... h4 {[%clk 0:00:44.3]} 42.
a5+ {[%clk 0:00:10.2]} 42... Ka7 {[%clk 0:00:44.7]} 43. b5 {[%clk 0:00:09.9]}
43... Kb8 {[%clk 0:00:22.6]} 44. b6 {[%clk 0:00:09.8]} 44... Rg3 {[%clk
0:00:23.2]} 45. Re1 {[%clk 0:00:09.9]} 45... Kc8 {[%clk 0:00:19.3]} 46. Re8+
{[%clk 0:00:06]} 46... Kd7 {[%clk 0:00:19.8]} 47. Rh8 {[%clk 0:00:06.5]} 47...
h3 {[%clk 0:00:18.2]} 48. Bxb7 {[%clk 0:00:06.6]} 48... Rg1 {[%clk 0:00:16.2]}
49. Rxh3 {[%clk 0:00:05.9]} 49... Ra1 {[%clk 0:00:16.8]} 50. a6 {[%clk
0:00:05.4]} 50... Rb1+ {[%clk 0:00:16.3]} 51. Kc2 {[%clk 0:00:04.6]} 51... Rxb6
{[%clk 0:00:15.4]} 52. a7 {[%clk 0:00:04.9]} 52... Rxb7 {[%clk 0:00:16.1]} 53.
a8=Q {[%clk 0:00:05.4]} 53... Rc7+ {[%clk 0:00:16.9]} 54. Kd3 {[%clk 0:00:05.8]}
54... Rc5 {[%clk 0:00:17.7]} 55. Rh7+ {[%clk 0:00:06.1]} 55... Ke6 {[%clk
0:00:18.6]} 56. Qe8+ {[%clk 0:00:06.5]} 56... Kd5 {[%clk 0:00:18.6]} 57. Qf7+
{[%clk 0:00:06.6]} 57... Ke5 {[%clk 0:00:18.8]} 58. Qe8+ {[%clk 0:00:05.5]}
58... Kf4 {[%clk 0:00:18.8]} 59. Rh4+ {[%clk 0:00:05.3]} 59... Kg3 {[%clk
0:00:18.5]} 60. Rd4 {[%clk 0:00:05.6]} 60... Be5 {[%clk 0:00:18.1]} 61. Qg6+
{[%clk 0:00:05.7]} 61... Kf2 {[%clk 0:00:17.7]} 62. Rc4 {[%clk 0:00:05.8]} 62...
Rd5+ {[%clk 0:00:17.8]} 63. Kc2 {[%clk 0:00:06.2]} 63... Bd6 {[%clk 0:00:18.5]}
64. Qe6 {[%clk 0:00:04.8]} 64... Ra5 {[%clk 0:00:15.1]} 65. Qxd6 {[%clk
0:00:05]} 65... Ra2+ {[%clk 0:00:15.8]} 66. Kb3 {[%clk 0:00:05.5]} 66... Re2
{[%clk 0:00:15.7]} 67. Qd4+ {[%clk 0:00:05.7]} 67... Kxf3 {[%clk 0:00:15.3]} 68.
Qf4+ {[%clk 0:00:06]} 68... Kg2 {[%clk 0:00:15.4]} 69. Rc2 {[%clk 0:00:06.7]}
69... Rxc2 {[%clk 0:00:15.4]} 70. Kxc2 {[%clk 0:00:07.6]} 70... Kh3 {[%clk
0:00:14.9]} 71. Qxf5+ {[%clk 0:00:08]} 71... Kh4 {[%clk 0:00:15.8]} 72. Qg6
{[%clk 0:00:08.3]} 72... Kh3 {[%clk 0:00:15.8]} 73. Qg5 {[%clk 0:00:09]} 73...
Kh2 {[%clk 0:00:16.7]} 74. Qg4 {[%clk 0:00:09.6]} 74... Kh1 {[%clk 0:00:16.6]}
75. Kd2 {[%clk 0:00:10.5]} 1-0